Cogmind - Beta 13 @@@ ROGUE MODE // 2024.04.16 @ 10:43:47 Player: Andru7428 Result: Destroyed by D-53 Grenadier with Mini Grenade Launcher Performance ------------- Evolutions (0) 0 Regions Visited (2) 400 Robots Destroyed (22) 110 Value Destroyed (477) 477 Prototype IDs (3) 60 Alien Tech Used (0) 0 Bonus (0) 0 TOTAL SCORE: 1047 Bonus ------- None Cogmind --------- Core Integrity 0/250 Matter 174/300 Energy 100/100 System Corruption 0% Temperature Cool (0) Movement Treading (240) Ox1 Location -10/Mines Parts ------- > --- POWER (1) -------- (None) > --- PROPULSION (2) --- Light Treads Light Treads > --- UTILITY (2) ------ High-capacity Storage Unit Seismic Detector > --- WEAPON (2) ------- Improved Assault Rifle Improved Assault Rifle > --- INVENTORY (20) --- Light Treads Light Treads Light Treads Wheel Heat Sink Improved Heat Sink High-capacity Battery (250) High-capacity Matter Pod (65) Light Armor Plating Beam Cannon Beam Cannon Beam Cannon Beam Cannon Rocket Launcher Rocket Launcher Rocket Launcher Rocket Launcher Mining Claw Peak State ------------ > --- POWER ------------ Ion Engine > --- PROPULSION ------- Light Treads Light Treads > --- UTILITY ---------- High-capacity Storage Unit Seismic Detector > --- WEAPON ----------- Improved Assault Rifle Improved Assault Rifle > --- INVENTORY -------- Light Ion Engine Light Treads Light Treads Aluminum Leg Wheel Heat Sink Improved Heat Sink Beam Cannon Beam Cannon Beam Cannon Beam Cannon Improved Assault Rifle Improved Assault Rifle Rocket Launcher [Rating: 13] Favorites ----------- Power Ion Engine Engine Ion Engine Propulsion Light Treads Treads Light Treads Utility Seismic Detector Device Seismic Detector Storage High-capacity Storage Unit Weapon Improved Assault Rifle Ballistic Gun Improved Assault Rifle Launcher Rocket Launcher Build | -11 -10 -10 ------- Run | Yrd Mat Min Slots Evolved . | . . . Power . | . . . Propulsion . | . . . Utility . | . . . Weapon . | . . . Parts Attached 21 | 7 8 6 Power 2 | 1 . 1 Engine 2 | 1 . 1 Core . | . . . Reactor . | . . . Propulsion 4 | 2 2 . Treads 4 | 2 2 . Leg . | . . . Wheel . | . . . Hover . | . . . Flight . | . . . Utility 4 | 2 2 . Device 1 | 1 . . Storage 3 | 1 2 . Processor . | . . . Hackware . | . . . Protection . | . . . Artifact . | . . . Weapon 11 | 2 4 5 Energy Gun . | . . . Energy Cannon . | . . . Ballistic Gun 8 | 2 3 3 Ballistic Cannon . | . . . Launcher 3 | . 1 2 Special Weapon . | . . . Impact Weapon . | . . . Slashing Weapon . | . . . Piercing Weapon . | . . . Special Melee Weapon . | . . . Unidentified Prototypes 1 | . 1 . Parts Lost 3 | . . 3 Power 2 | . . 2 Propulsion . | . . . Utility . | . . . Weapon 1 | . . 1 Highest Loss Streak 2 | . . 2 To Critical Strikes . | . . . Average Slot Usage (%) 99 | . 99 100 Engine 14 | . 14 14 Treads 28 | . 28 28 Device 14 | . 14 14 Storage 14 | . 14 14 Ballistic Gun 27 | . 27 27 Naked Turns . | . . . Heaviest Build 52 | 14 52 52 Greatest Support 40 | 40 40 40 Greatest Overweight (x) 4 | 4 1 1 Average Overweight (x) . | 1 . 1 Largest Inventory Capacity 20 | 8 20 20 Average Capacity 17 | 7 16 20 Most Carried 20 | 8 20 20 Average Carried 15 | 5 15 19 Final Capacity 20 | 8 20 20 Final Carried 20 | 6 20 18 Class Distribution -------------------- 100% | Mutant Dominant Class ---------------- Mutant | -10/Materials Mutant | -10/Mines Resources | -11 -10 -10 ----------- Run | Yrd Mat Min Matter Collected 718 | 279 321 118 Remotely . | . . . Salvage Created 712 | 55 490 167 Parts 48 | 5 35 8 Haulers Intercepted 2 | . 2 . Recyclers Shooed 3 | 1 2 . Parts Field Recycled . | . . . Retrieved Matter . | . . . Parts Self-Destructed . | . . . Prevented . | . . . Kills | -11 -10 -10 ------- Run | Yrd Mat Min Combat Hostiles Destroyed 30 | . 10 20 Guns 10 | . 7 3 AOE 20 | . 3 17 Classes Destroyed 8 | 1 6 1 Tunneler 2 | 2 . . Hauler 2 | . 2 . Recycler 1 | . 1 . Operator 1 | . 1 . Watcher 2 | . 2 . Swarmer 5 | . 3 2 Grunt 9 | . 7 2 Assembled 16 | . . 16 Best Kill Streak 16 | 2 3 16 Combat Bots Only 16 | . 3 16 Max Kills in Single Turn 4 | 1 2 4 Gunslinging . | . . . Exploded 4 | . 2 4 Melee . | . . . Uniques/NPCs Destroyed . | . . . Combat | -11 -10 -10 -------- Run | Yrd Mat Min Hostile Shots Fired 68 | . 37 31 Missed 20 | . 10 10 Damage Taken 1094 | . 335 759 Core 296 | . 45 251 Absorbed by Shields . | . . . Core Remaining (%) 100 | 100 . . Volleys Fired 64 | 6 41 17 Largest 2 | 2 2 2 Hottest 46 | 40 46 46 Shots Fired 118 | 12 80 26 Gun 108 | 12 78 18 Cannon . | . . . Launcher 10 | . 2 8 Special . | . . . Kinetic 108 | 12 78 18 Thermal . | . . . Explosive 10 | . 2 8 Electromagnetic . | . . . Robot Hit Streak 19 | 4 19 9 Robot Miss Streak 5 | 1 4 5 Penetration Max . | . . . Secondary Targets . | . . . Shots Hit Robots 81 | 7 59 15 Core Hits 62 | 3 25 34 Critical Kills . | . . . Critical Parts Destroyed . | . . . Critical Strikes . | . . . Melee Attacks . | . . . Impact . | . . . Slashing . | . . . Piercing . | . . . Sneak Attacks . | . . . Combat Hostiles . | . . . Follow-up Attacks . | . . . Damage Inflicted 2246 | 79 1026 1141 Guns 1088 | 79 791 218 Cannons . | . . . Explosions 1157 | . 234 923 Melee . | . . . Ramming 1 | . 1 . Kinetic 1088 | 79 791 218 Thermal . | . . . Explosive 1157 | . 234 923 Electromagnetic . | . . . Impact . | . . . Slashing . | . . . Piercing . | . . . Highest Corruption . | . . . Average Corruption . | . . . Corruption Purged . | . . . Corruption Blocked . | . . . Overload Shots . | . . . Overflow Damage 32 | . 3 29 Projectiles . | . . . Explosions 32 | . 3 29 Melee . | . . . Knockbacks . | . . . Impact . | . . . Kinetic . | . . . Secondary . | . . . Self-Inflicted Damage 127 | . . 127 Shots 4 | . . 4 Rammed 1 | . 1 . Targets Rammed 1 | . 1 . Kicked . | . . . Crushed . | . . . Highest Temperature 22 | . 22 4 Average Temperature 6 | . 7 2 Received Heat Transfer 228 | . 198 30 Siege Activations . | . . . Robots Corrupted . | . . . Combat Hostiles . | . . . Parts Fried . | . . . Impact Corruptions . | . . . Robots Melted . | . . . Combat Hostiles . | . . . Parts Melted . | . . . Heat Transferred . | . . . Parts Sabotaged . | . . . Parts Stolen . | . . . Parts Stripped . | . . . Power Chain Reactions . | . . . Alert | -11 -10 -10 ------- Run | Yrd Mat Min Peak Influence 167 | 10 167 155 Initial 6 | . 6 6 Average 64 | 1 65 76 Maximum Alert Level . | . . . Low Security (%) 100 | 100 100 100 Level 1 . | . . . Level 2 . | . . . Level 3 . | . . . Level 4 . | . . . Level 5 . | . . . High Security . | . . . Max Security . | . . . Squads Dispatched 1 | . 1 . Investigation . | . . . Extermination . | . . . Reinforcement 1 | . 1 . Assault . | . . . Garrison . | . . . Intercept . | . . . Searches Triggered . | . . . Construction Impeded . | . . . Haulers Reinforced . | . . . Active Scanning Responses . | . . . Cargo Convoy Interrupts . | . . . Stealth | -11 -10 -10 --------- Run | Yrd Mat Min Distress Signals 1 | . . 1 Communications Jammed . | . . . Distress Signals . | . . . Times Spotted 39 | . 16 23 Peak Tracking Total 17 | . 3 17 Tactical Retreats 1 | . . 1 Traps | -11 -10 -10 ------- Run | Yrd Mat Min Traps Triggered . | . . . Indirectly . | . . . Trap Hack Attempts . | . . . Triggered . | . . . Disarmed . | . . . Reprogrammed . | . . . Reused . | . . . Traps Extracted . | . . . Installed . | . . . Triggered . | . . . Machines | -11 -10 -10 ---------- Run | Yrd Mat Min Machines Disabled 1 | . . 1 Max in Single Turn 1 | . . 1 Machines Repaired . | . . . Machines Dismantled . | . . . Machines Sabotaged . | . . . Overloaded Fab Kills . | . . . Hacking | -11 -10 -10 --------- Run | Yrd Mat Min Machines Accessed 5 | . 4 1 Terminals 5 | . 4 1 Fabricators . | . . . Repair Stations . | . . . Recycling Units . | . . . Scanalyzers . | . . . Garrison Access . | . . . Total Hacks 15 | . 13 2 Successful 7 | . 6 1 Failed 8 | . 7 1 Catastrophic 1 | . 1 . Database Lockouts . | . . . Manual 8 | . 6 2 Terminals 15 | . 13 2 Fabricators . | . . . Repair Stations . | . . . Recycling Units . | . . . Scanalyzers . | . . . Garrison Access . | . . . Terminal Hacks 6 | . 5 1 Robot Analysis 2 | . 1 1 Prototype ID Bank 1 | . 1 . Alert Level 1 | . 1 . Locate Traps 2 | . 2 . Fabricator Hacks . | . . . Repair Station Hacks . | . . . Recycling Unit Hacks . | . . . Scanalyzer . | . . . Garrison Access Hacks . | . . . Unauthorized Hacks 1 | . 1 . Terminals 1 | . 1 . Botnet 1 | . 1 . Fabricators . | . . . Repair Stations . | . . . Recycling Units . | . . . Scanalyzers . | . . . Garrison Access . | . . . Data Cores Recovered 1 | . 1 . Used . | . . . Hacking Detections 5 | . 4 1 Full Trace Events . | . . . Feedback Events . | . . . Feedback Blocked . | . . . Robot Schematics Acquired . | . . . Robots Built . | . . . Authchips . | . . . Time . | . . . Total Robot Build Rating . | . . . Part Schematics Acquired . | . . . Parts Built . | . . . Authchips . | . . . Time . | . . . Total Part Build Rating . | . . . Parts Repaired . | . . . Time . | . . . Parts Recycled . | . . . Recycled Matter . | . . . Retrieved Matter . | . . . Retrieved Components . | . . . Parts Scanalyzed . | . . . Part Schematics Acquired . | . . . Parts Damaged . | . . . Bothacking | -11 -10 -10 ------------ Run | Yrd Mat Min Used RIF Installer . | . . . Robots Hacked . | . . . Non-combat . | . . . Combat . | . . . Robot Hacks Applied . | . . . Relay Couplers Released . | . . . Fabnet Peak Effective % . | . . . Robots Rewired . | . . . Allies Hacked . | . . . Hacks Repelled . | . . . Allies | -11 -10 -10 -------- Run | Yrd Mat Min Total Allies . | . . . Largest Group . | . . . Highest-Rated Group . | . . . Highest-Rated Ally . | . . . Total Orders . | . . . Ally Attacks . | . . . Total Damage . | . . . Kills . | . . . Allies Corrupted . | . . . Allies Melted . | . . . Intel | -11 -10 -10 ------- Run | Yrd Mat Min Robot Analysis Total 2 | . 1 1 Derelict Logs Recovered 1 | . . 1 Drone Launches . | . . . Drone Recoveries . | . . . Exploration | -11 -10 -10 ------------- Run | Yrd Mat Min Turns Passed 1844 | 134 1184 526 Spaces Moved 699 | 57 449 193 Core 34 | 34 . . Treads 665 | 23 449 193 Legs . | . . . Wheels . | . . . Hover . | . . . Flight . | . . . Fastest Speed 50 | 50 160 240 Average Speed 220 | 175 217 240 Slowest Speed 250 | 250 240 240 Overloaded Moves . | . . . Propulsion Burnouts . | . . . Robots Hopped . | . . . Cave-ins Triggered . | . . . Exploration Rate (%) 37 | 4 71 36 Regions Visited 2 Branch Regions 1 Pre-discovered Areas 1 | . . 1 Known Exits Taken . | . . . Unknown Exits Taken 2 | 1 1 . Scrap Searched 1 | . . 1 Spaces Dug . | . . . Terrain Destroyed 97 | . 12 85 Melee . | . . . Projectile . | . . . AOE 97 | . 12 85 Terrain Rammed . | . . . Walls Destroyed . | . . . Machines Disabled . | . . . Actions | -11 -10 -10 --------- Run | Yrd Mat Min Total 891 | 78 584 229 Wait 72 | 1 60 11 Move 697 | 56 448 193 Hop . | . . . Pick Up 26 | 8 17 1 Fast Attach 6 | 5 1 . Attach 4 | 2 . 2 Detach . | . . . Swap 11 | . 7 4 Drop 10 | . 9 1 Fire 64 | 6 41 17 Melee . | . . . Ram . | . . . Kick . | . . . Crush 1 | . 1 . Escape Stasis . | . . . Rewire . | . . . Trap . | . . . Miscellaneous . | . . . Route ------- -11/Scrapyard -10/Materials (discovered 3 exits: [*Mat x2] / *Min) -10/Mines (discovered 1 exit: [*Mat]) History --------- Turn | Location | Event 26 | -11/Scrapyard | Discovered new exit (range 16) 135 | -11/Scrapyard | Entered Materials 309 | -10/Materials | Build established: Mutant 826 | -10/Materials | Discovered new exit (range 6) 1145 | -10/Materials | Discovered new exit (range 16) 1260 | -10/Materials | Discovered new exit (range 12) 1319 | -10/Materials | Entered Mines 1429 | -10/Mines | YI-UF0 nonchalantly dropped a Grenade Launcher on the ground 1508 | -10/Mines | Discovered new exit (range 5) 1629 | -10/Mines | Assembled infested the area 1681 | -10/Mines | Destroyed 16 combat bots 1839 | -10/Mines | Core integrity fell below 50% 1845 | -10/Mines | Destroyed by D-53 Grenadier with Mini Grenade Launcher Last Messages --------------- 01650_ Destroyed Ion Engine. 01650_ as-48840 destroyed. 01652_ Destroyed Asb. Hover Unit. 01652_ as-57955 destroyed. 01654_ The unstable cave ceiling collapses. 01654_ as-58402 destroyed. 01654_ as-04644 destroyed. 01654_ as-65096 destroyed. 01656_ as-96144 destroyed. 01658_ The unstable cave ceiling collapses. 01660_ as-80656 destroyed. 01661_ The unstable cave ceiling collapses. 01813_ K-01 Serf collects debris. 01820_ The unstable cave ceiling collapses. 01825_ K-01 Serf collects debris. 01838_ Imp. Assault Rifle destroyed. 01840_ Lgt. Ion Engine destroyed. 01842_ The unstable cave ceiling collapses. 01842_ K-01 Serf collects debris. 01843_ The unstable cave ceiling collapses. Map ----- +----------------------------------------------------+ | ????????????????????????????????????????? | | ????????????????????????????????????????? | | ????????????????????????????????????????? | | ????????????????????????????????????????? | | ????????????????????????????????????????? | | ????????????????????????????????????????? | | ????????????????????????????????????????? | | ??????????????????????? ???????????????? | | ??????????????????????? ???????????????? | | ?????????????????????? ???????????????? | | ?????????????????????? ???????????????? | | ???????????????????#??? ##?????????????? | | ???????????????#??? ??? #?????????????? | | ?????????????##? ?? ?? #?????????????? | | ??????????????# #!#? #? ?????????????? | | ??????????? # # #?????????????? | | ??????????? ## ## ??????????????? | | ??????????? % ??????????????? | | ?????????? # ?##???????????? | | ?????????? # # ####??###???? | | ??????????# # # ###! # #? | | ????????????# d d ! ##*% ##? | | ????##???????# #? | | #### ###????# #? | | ##???##????## = #?? | | # ##????????# @ ##?? | | ## #????????## # #??? | | % % #?????????# ## ##??? | | #?????????# k #????? | | #?????###### ### #????? | | ##????## ###### ###?? ????? | | #### # ##?????# #???# #????# ###???? | | ???#### #?????## ##### #????# ?????? | | ??????# #?????# #????# ##????? | | ??????# #?????# #######????# ##????? | | ??????# #?????# ##??????????# #?????? | | ????# #?????## #???????????# #?????? | | ???#]#??????## #???????????# #?????? | | ??#=##??????# #???????????# #?????? | | ## !##?????# #???????????# #?????? | | ! % #! ##????# #?????#######] #?????? | | !% #????# #?????## #?????? | | ### # #????# #?????## #?????? | | ??#?## ##???# #?????## ######?????? | | ?????## #???# #?????# ##??????? | | ??????# #???# #?##### % ##??????? | | ??????# #???# #?# ##??????? | | ??????# #???# ### ### ##??????? | | ?????## #???# #?# ##??????? | | ?????# #???# ######T #???????? | +----------------------------------------------------+ Best States ------------- Heat Dissipation 25 Energy Generation 10 Energy Capacity 250 Matter Stores 300 Matter Capacity 300 Sight Range 16 Terrain Scan Density 10 Evasion (%) 40 Recoil Reduction 2 Item Schematics ----------------- None Robot Schematics ------------------ None Fabricated ------------ Nothing Alien Tech Used ----------------- None Achievements -------------- None Challenges ------------ None Game ------ Seed MetafiberFlightLog Manual? 0 Play Time 00:12:34 Cumulative 195.2 hours Start 2024.04.16 @ 10:33:46 End 2024.04.16 @ 10:43:47 Sessions 1 Manual Loads 0 Difficulty Rogue Special Mode None Game No. 147 Rogue 147 Adventurer 0 Explorer 0 Win Type - Total 3 Types 3/0/0/0/0/0/0/0/0 Lore% 63 Gallery% 73 Achievement% 61 Wizard Run 0 Options --------- Layout 1 ASCII 0 Keyboard 1 Movement Numpad Keybinds 0 Fullscreen 1 Font 24/Smallcaps Map View 50x35 Zoom Use 0% Tactical HUD 1 Map Filters NONE Filters NONE Steam 1 RUN: 2c925d10-289a-43c0-bf3c-733e61cf987e